[Event "*** Titled Tuesday Blitz"]
[Site "Chess.com"]
[Date "2021.03.16"]
[Round "3"]
[White "Rakesh"]
[Black "enriquebutti"]
[Result "0-1"]
[WhiteElo "2495"]
[BlackElo "2205"]
[TimeControl "180+1"]
[EndTime "10:26:15 PDT"]
[Termination "enriquebutti won by resignation"]

1. e4 {[%clk 0:03:00.9]} 1... c5 {[%clk 0:02:59.4]} 2. c3 {[%clk 0:02:56.8]}
2... e6 {[%clk 0:02:57.6]} 3. d3 {[%clk 0:02:50.7]} 3... d5 {[%clk 0:02:56.7]}
4. exd5 {[%clk 0:02:50]} 4... Qxd5 {[%clk 0:02:55.5]} 5. d4 {[%clk 0:02:50.9]}
5... Nf6 {[%clk 0:02:51.7]} 6. Nf3 {[%clk 0:02:50]} 6... Nc6 {[%clk 0:02:49.2]}
7. Be3 {[%clk 0:02:42.3]} 7... cxd4 {[%clk 0:02:43.5]} 8. cxd4 {[%clk
0:02:35.2]} 8... Bb4+ {[%clk 0:02:41.9]} 9. Nc3 {[%clk 0:02:36.1]} 9... Ne4
{[%clk 0:02:33.8]} 10. Rc1 {[%clk 0:02:31.6]} 10... Qxa2 {[%clk 0:02:23.8]} 11.
Bd3 {[%clk 0:02:27.8]} 11... Qxb2 {[%clk 0:02:12.7]} 12. Bxe4 {[%clk 0:02:26.2]}
12... Bxc3+ {[%clk 0:02:11.9]} 13. Kf1 {[%clk 0:02:11.9]} 13... Bd7 {[%clk
0:02:10]} 14. Rb1 {[%clk 0:02:09.1]} 14... Qa3 {[%clk 0:02:04.8]} 15. Rxb7
{[%clk 0:02:04.6]} 15... Qa6+ {[%clk 0:01:52.9]} 16. Qd3 {[%clk 0:02:03.8]}
16... Qxb7 {[%clk 0:01:51.2]} 17. Qxc3 {[%clk 0:02:02.8]} 17... Rc8 {[%clk
0:01:45.4]} 18. Ke2 {[%clk 0:02:01.8]} 18... Qb4 {[%clk 0:01:40.9]} 19. Qxb4
{[%clk 0:01:56.3]} 19... Nxb4 {[%clk 0:01:39.8]} 20. Ne5 {[%clk 0:01:57.2]}
20... Bb5+ {[%clk 0:01:38.1]} 21. Kf3 {[%clk 0:01:54.9]} 21... f6 {[%clk
0:01:37.2]} 22. Rb1 {[%clk 0:01:41]} 22... a5 {[%clk 0:01:36]} 0-1

[Event "*** Titled Tuesday Blitz"]
[Site "Chess.com"]
[Date "2021.03.16"]
[Round "3"]
[White "GMKrikor"]
[Black "Slovak_fighter2000"]
[Result "1-0"]
[WhiteElo "2751"]
[BlackElo "2481"]
[TimeControl "180+1"]
[EndTime "10:26:23 PDT"]
[Termination "GMKrikor won by resignation"]

1. Nf3 {[%clk 0:03:00.9]} 1... Nf6 {[%clk 0:02:59]} 2. c4 {[%clk 0:03:00.7]}
2... e6 {[%clk 0:02:58.9]} 3. Nc3 {[%clk 0:02:59.8]} 3... d5 {[%clk 0:02:57.8]}
4. e3 {[%clk 0:02:56.3]} 4... b6 {[%clk 0:02:57.3]} 5. b3 {[%clk 0:02:48.7]}
5... Bb7 {[%clk 0:02:57.4]} 6. Bb2 {[%clk 0:02:47.9]} 6... Nbd7 {[%clk
0:02:57.1]} 7. cxd5 {[%clk 0:02:46.6]} 7... Nxd5 {[%clk 0:02:56.9]} 8. Nxd5
{[%clk 0:02:46.2]} 8... Bxd5 {[%clk 0:02:54.7]} 9. Qc2 {[%clk 0:02:38.5]} 9...
c5 {[%clk 0:02:46.1]} 10. h4 {[%clk 0:02:27.8]} 10... h6 {[%clk 0:02:43.6]} 11.
O-O-O {[%clk 0:02:15.9]} 11... Rg8 {[%clk 0:02:32]} 12. Qh7 {[%clk 0:02:11.4]}
12... Nf6 {[%clk 0:02:23.7]} 13. Bb5+ {[%clk 0:02:11.2]} 13... Ke7 {[%clk
0:02:15.5]} 14. Bxf6+ {[%clk 0:02:02.3]} 14... Kxf6 {[%clk 0:02:15.3]} 15. e4
{[%clk 0:01:13.2]} 15... Bd6 {[%clk 0:01:24.5]} 16. exd5 {[%clk 0:01:07.2]}
16... exd5 {[%clk 0:01:24.5]} 17. g4 {[%clk 0:00:59.5]} 17... d4 {[%clk
0:00:39]} 18. Rde1 {[%clk 0:00:46.2]} 1-0

[Event "*** Titled Tuesday Blitz"]
[Site "Chess.com"]
[Date "2021.03.16"]
[Round "3"]
[White "The_filthy"]
[Black "aa175"]
[Result "0-1"]
[WhiteElo "2298"]
[BlackElo "2566"]
[TimeControl "180+1"]
[EndTime "10:26:23 PDT"]
[Termination "aa175 won by resignation"]

1. e4 {[%clk 0:03:00.9]} 1... c5 {[%clk 0:02:52.3]} 2. Nf3 {[%clk 0:03:00.2]}
2... d6 {[%clk 0:02:52.3]} 3. d4 {[%clk 0:03:00.4]} 3... cxd4 {[%clk 0:02:53.2]}
4. Nxd4 {[%clk 0:03:01]} 4... Nf6 {[%clk 0:02:53.7]} 5. Nc3 {[%clk 0:03:01.6]}
5... a6 {[%clk 0:02:54.2]} 6. Be3 {[%clk 0:03:02.2]} 6... e6 {[%clk 0:02:54.5]}
7. f3 {[%clk 0:03:01.7]} 7... b5 {[%clk 0:02:53.9]} 8. Qd2 {[%clk 0:03:02.1]}
8... Nbd7 {[%clk 0:02:53.9]} 9. O-O-O {[%clk 0:03:02.3]} 9... Bb7 {[%clk
0:02:54]} 10. g4 {[%clk 0:03:02.1]} 10... h6 {[%clk 0:02:54.6]} 11. h4 {[%clk
0:03:00.9]} 11... b4 {[%clk 0:02:54.6]} 12. Nce2 {[%clk 0:03:00.2]} 12... d5
{[%clk 0:02:54.7]} 13. Bh3 {[%clk 0:02:55.7]} 13... dxe4 {[%clk 0:02:52.7]} 14.
f4 {[%clk 0:02:56.1]} 14... Qa5 {[%clk 0:02:50]} 15. Kb1 {[%clk 0:02:55.2]}
15... Nb6 {[%clk 0:02:50.3]} 16. Nb3 {[%clk 0:02:52.4]} 16... Qd5 {[%clk
0:02:50.5]} 17. Qe1 {[%clk 0:02:42.3]} 17... Qc6 {[%clk 0:02:50.7]} 18. Bxb6
{[%clk 0:02:36.6]} 18... Qxb6 {[%clk 0:02:50.8]} 19. g5 {[%clk 0:02:37.1]} 19...
hxg5 {[%clk 0:02:50.4]} 20. hxg5 {[%clk 0:02:36.9]} 20... Nd5 {[%clk 0:02:43.8]}
21. g6 {[%clk 0:02:35.2]} 21... f5 {[%clk 0:02:37.8]} 22. Nbd4 {[%clk
0:01:52.9]} 22... Bd6 {[%clk 0:02:23.6]} 23. Nxe6 {[%clk 0:01:49.5]} 23... Ke7
{[%clk 0:01:28.9]} 24. Nxg7 {[%clk 0:01:47.3]} 24... Kf6 {[%clk 0:01:16.6]} 25.
Nxf5 {[%clk 0:01:37.8]} 25... Rxh3 {[%clk 0:01:12.5]} 26. Nxd6 {[%clk
0:01:31.6]} 26... Nc3+ {[%clk 0:00:49.8]} 27. Nxc3 {[%clk 0:01:30.4]} 27... bxc3
{[%clk 0:00:50.7]} 28. Qxc3+ {[%clk 0:01:28.5]} 28... Rxc3 {[%clk 0:00:49.2]}
29. Nxb7 {[%clk 0:01:20.6]} 29... Qxb7 {[%clk 0:00:46.6]} 30. Rd6+ {[%clk
0:01:15.9]} 30... Kf5 {[%clk 0:00:46.5]} 31. g7 {[%clk 0:01:14.1]} 31... Rg3
{[%clk 0:00:36.2]} 0-1

[Event "*** Titled Tuesday Blitz"]
[Site "Chess.com"]
[Date "2021.03.16"]
[Round "3"]
[White "Niktlt"]
[Black "ckgchess"]
[Result "0-1"]
[WhiteElo "2482"]
[BlackElo "2764"]
[TimeControl "180+1"]
[EndTime "10:26:32 PDT"]
[Termination "ckgchess won by resignation"]

1. c4 {[%clk 0:03:00.9]} 1... g6 {[%clk 0:02:59.8]} 2. Nc3 {[%clk 0:03:00.7]}
2... Bg7 {[%clk 0:03:00.7]} 3. g3 {[%clk 0:03:01.5]} 3... c5 {[%clk 0:03:01.2]}
4. Bg2 {[%clk 0:03:01.7]} 4... Nc6 {[%clk 0:03:02.1]} 5. Nf3 {[%clk 0:03:01.9]}
5... Nf6 {[%clk 0:03:02.8]} 6. O-O {[%clk 0:03:02.2]} 6... O-O {[%clk
0:03:03.7]} 7. d4 {[%clk 0:03:01.8]} 7... cxd4 {[%clk 0:03:04.6]} 8. Nxd4 {[%clk
0:03:02.6]} 8... d6 {[%clk 0:03:05.5]} 9. Nxc6 {[%clk 0:03:02.2]} 9... bxc6
{[%clk 0:03:06.4]} 10. Bxc6 {[%clk 0:03:02.8]} 10... Bh3 {[%clk 0:03:07]} 11.
Bg2 {[%clk 0:03:02.6]} 11... Bxg2 {[%clk 0:03:07]} 12. Kxg2 {[%clk 0:03:03.5]}
12... Rc8 {[%clk 0:03:07.9]} 13. Be3 {[%clk 0:02:55]} 13... Rxc4 {[%clk
0:03:07.4]} 14. Qd3 {[%clk 0:02:54.8]} 14... Qa8+ {[%clk 0:03:06.3]} 15. f3
{[%clk 0:02:53.6]} 15... Rfc8 {[%clk 0:03:06.9]} 16. Bg1 {[%clk 0:02:54.5]}
16... d5 {[%clk 0:02:44.7]} 17. Rfd1 {[%clk 0:02:44.3]} 17... e6 {[%clk
0:02:42.6]} 18. a3 {[%clk 0:02:40.4]} 18... h5 {[%clk 0:02:40.4]} 19. Rac1
{[%clk 0:02:40.1]} 19... h4 {[%clk 0:02:37.3]} 20. Bf2 {[%clk 0:02:34.9]} 20...
Qb7 {[%clk 0:02:32.6]} 21. Qd2 {[%clk 0:02:18.4]} 21... Ne8 {[%clk 0:02:17.1]}
22. g4 {[%clk 0:01:50.7]} 22... Nd6 {[%clk 0:01:44.1]} 23. h3 {[%clk 0:01:45.7]}
23... Bf6 {[%clk 0:01:38.1]} 24. e4 {[%clk 0:01:22.9]} 24... dxe4 {[%clk
0:01:09.1]} 25. Qxd6 {[%clk 0:01:18.4]} 25... exf3+ {[%clk 0:01:09.3]} 26. Kh2
{[%clk 0:00:36.9]} 26... Qxb2 {[%clk 0:01:08.9]} 27. Ne4 {[%clk 0:00:36.5]}
27... Be5+ {[%clk 0:01:07.4]} 0-1

[Event "*** Titled Tuesday Blitz"]
[Site "Chess.com"]
[Date "2021.03.16"]
[Round "3"]
[White "SHIVACalypso"]
[Black "Bodnar_Mykola"]
[Result "1-0"]
[WhiteElo "2363"]
[BlackElo "2460"]
[TimeControl "180+1"]
[EndTime "10:26:40 PDT"]
[Termination "SHIVACalypso won by resignation"]

1. Nf3 {[%clk 0:03:00.9]} 1... Nf6 {[%clk 0:03:00.1]} 2. c4 {[%clk 0:03:01.8]}
2... g6 {[%clk 0:03:00]} 3. g3 {[%clk 0:03:02.7]} 3... Bg7 {[%clk 0:03:00.7]} 4.
Bg2 {[%clk 0:03:03.6]} 4... O-O {[%clk 0:03:01.3]} 5. O-O {[%clk 0:03:04.5]}
5... d6 {[%clk 0:03:01.9]} 6. Nc3 {[%clk 0:03:05.4]} 6... Nc6 {[%clk 0:03:02]}
7. d3 {[%clk 0:03:05.3]} 7... e5 {[%clk 0:03:01.9]} 8. Rb1 {[%clk 0:03:06.2]}
8... h6 {[%clk 0:03:01.2]} 9. b4 {[%clk 0:03:06.1]} 9... Nh5 {[%clk 0:02:54.7]}
10. b5 {[%clk 0:03:05.3]} 10... Ne7 {[%clk 0:02:54.9]} 11. a4 {[%clk 0:03:04.5]}
11... f5 {[%clk 0:02:55]} 12. Bb2 {[%clk 0:03:04.1]} 12... f4 {[%clk 0:02:55.1]}
13. Nd5 {[%clk 0:03:03]} 13... Nxd5 {[%clk 0:02:51.5]} 14. cxd5 {[%clk
0:03:03.9]} 14... g5 {[%clk 0:02:51.3]} 15. Qc2 {[%clk 0:02:59.2]} 15... Rf7
{[%clk 0:02:45.6]} 16. Nd2 {[%clk 0:02:49.7]} 16... g4 {[%clk 0:02:43.1]} 17.
Ne4 {[%clk 0:02:41.8]} 17... Nf6 {[%clk 0:02:39.3]} 18. gxf4 {[%clk 0:02:38.1]}
18... Nxe4 {[%clk 0:02:34.1]} 19. dxe4 {[%clk 0:02:32.6]} 19... exf4 {[%clk
0:02:29.5]} 20. f3 {[%clk 0:02:27.4]} 20... g3 {[%clk 0:02:26.3]} 21. hxg3
{[%clk 0:02:15.2]} 21... fxg3 {[%clk 0:02:26]} 22. e3 {[%clk 0:01:35.6]} 22...
Qh4 {[%clk 0:02:13.5]} 23. Bh1 {[%clk 0:01:22.8]} 23... g2 {[%clk 0:01:54.4]}
24. Bxg2 {[%clk 0:01:11.2]} 24... Bxb2 {[%clk 0:01:54]} 25. Rxb2 {[%clk
0:01:07]} 25... Bh3 {[%clk 0:01:54.1]} 26. Rf2 {[%clk 0:01:03]} 26... Rg7 {[%clk
0:01:49.9]} 27. Qc3 {[%clk 0:00:37.4]} 27... Rf8 {[%clk 0:01:45.7]} 28. f4
{[%clk 0:00:32.4]} 28... h5 {[%clk 0:01:13.2]} 29. Rf3 {[%clk 0:00:32.1]} 29...
Qg4 {[%clk 0:01:08.8]} 30. Rxh3 {[%clk 0:00:28.4]} 30... Qxh3 {[%clk 0:01:08.3]}
31. Qxg7+ {[%clk 0:00:28.2]} 31... Kxg7 {[%clk 0:01:08.2]} 32. Bxh3 {[%clk
0:00:28.8]} 1-0

[Event "*** Titled Tuesday Blitz"]
[Site "Chess.com"]
[Date "2021.03.16"]
[Round "3"]
[White "Alexander_Moskalenko"]
[Black "SameerMujumdar"]
[Result "1-0"]
[WhiteElo "2763"]
[BlackElo "2313"]
[TimeControl "180+1"]
[EndTime "10:26:45 PDT"]
[Termination "Alexander_Moskalenko won by resignation"]

1. c4 {[%clk 0:02:10.9]} 1... Nf6 {[%clk 0:02:58]} 2. Nc3 {[%clk 0:02:11.8]}
2... g6 {[%clk 0:02:56.3]} 3. e4 {[%clk 0:02:11.7]} 3... d6 {[%clk 0:02:56]} 4.
d4 {[%clk 0:02:12.3]} 4... Bg7 {[%clk 0:02:56.2]} 5. Nf3 {[%clk 0:02:12.5]} 5...
O-O {[%clk 0:02:56.7]} 6. Be2 {[%clk 0:02:13.1]} 6... Na6 {[%clk 0:02:57.3]} 7.
Be3 {[%clk 0:02:11.1]} 7... e5 {[%clk 0:02:56]} 8. d5 {[%clk 0:02:11.2]} 8...
Nc5 {[%clk 0:02:52]} 9. Nd2 {[%clk 0:02:10.5]} 9... a5 {[%clk 0:02:51.6]} 10. g4
{[%clk 0:02:09.3]} 10... c6 {[%clk 0:02:45.3]} 11. h4 {[%clk 0:02:07.7]} 11...
cxd5 {[%clk 0:01:55]} 12. cxd5 {[%clk 0:02:08.6]} 12... Nfd7 {[%clk 0:01:54.2]}
13. h5 {[%clk 0:02:05.5]} 13... f5 {[%clk 0:01:53.6]} 14. hxg6 {[%clk 0:02:03]}
14... hxg6 {[%clk 0:01:53.4]} 15. gxf5 {[%clk 0:02:03]} 15... gxf5 {[%clk
0:01:53]} 16. exf5 {[%clk 0:02:01.6]} 16... Rxf5 {[%clk 0:01:52]} 17. Bg4 {[%clk
0:02:01.5]} 17... Nf6 {[%clk 0:01:50.3]} 18. Bxf5 {[%clk 0:01:58.5]} 18... Bxf5
{[%clk 0:01:51.2]} 19. Bxc5 {[%clk 0:01:58.1]} 19... dxc5 {[%clk 0:01:39.7]} 20.
Qf3 {[%clk 0:01:58.2]} 20... Bg4 {[%clk 0:01:32.6]} 21. Qg2 {[%clk 0:01:49.5]}
21... e4 {[%clk 0:01:01]} 22. Ndxe4 {[%clk 0:01:47.8]} 22... Nxe4 {[%clk
0:00:58.7]} 23. Nxe4 {[%clk 0:01:30.6]} 23... Bf5 {[%clk 0:00:27.9]} 24. O-O-O
{[%clk 0:01:24.3]} 24... Qb6 {[%clk 0:00:26.6]} 25. f3 {[%clk 0:01:23.5]} 25...
c4 {[%clk 0:00:19.4]} 26. Rhg1 {[%clk 0:01:14.9]} 26... Qh6+ {[%clk 0:00:07.9]}
27. Qg5 {[%clk 0:01:14.5]} 1-0

[Event "*** Titled Tuesday Blitz"]
[Site "Chess.com"]
[Date "2021.03.16"]
[Round "3"]
[White "abykhovsky"]
[Black "iturrizaga"]
[Result "0-1"]
[WhiteElo "2652"]
[BlackElo "2849"]
[TimeControl "180+1"]
[EndTime "10:26:53 PDT"]
[Termination "iturrizaga won by resignation"]

1. d4 {[%clk 0:03:00.9]} 1... Nf6 {[%clk 0:02:59.1]} 2. Nf3 {[%clk 0:03:00.8]}
2... e6 {[%clk 0:02:57.8]} 3. Bg5 {[%clk 0:02:58.8]} 3... Be7 {[%clk 0:02:56.7]}
4. e3 {[%clk 0:02:58.8]} 4... O-O {[%clk 0:02:57.1]} 5. c4 {[%clk 0:02:59]} 5...
b6 {[%clk 0:02:57.4]} 6. Nc3 {[%clk 0:02:59.3]} 6... Bb7 {[%clk 0:02:58]} 7. Be2
{[%clk 0:02:59.4]} 7... c5 {[%clk 0:02:58.5]} 8. O-O {[%clk 0:02:56.9]} 8...
cxd4 {[%clk 0:02:58.6]} 9. Nxd4 {[%clk 0:02:57.8]} 9... a6 {[%clk 0:02:55.3]}
10. Bf3 {[%clk 0:02:50.3]} 10... Qc7 {[%clk 0:02:54.3]} 11. Rc1 {[%clk
0:02:45.6]} 11... d6 {[%clk 0:02:53.4]} 12. b3 {[%clk 0:02:33.2]} 12... Nbd7
{[%clk 0:02:52.9]} 13. Bxb7 {[%clk 0:02:29.5]} 13... Qxb7 {[%clk 0:02:52.8]} 14.
Qe2 {[%clk 0:02:30]} 14... Rac8 {[%clk 0:02:52]} 15. Rfd1 {[%clk 0:02:30.2]}
15... Rfd8 {[%clk 0:02:50.8]} 16. h3 {[%clk 0:02:30.1]} 16... Ne5 {[%clk
0:02:50.7]} 17. Bf4 {[%clk 0:02:29]} 17... Ng6 {[%clk 0:02:47.3]} 18. Bg3 {[%clk
0:02:27.5]} 18... Rc5 {[%clk 0:02:45.3]} 19. b4 {[%clk 0:02:20.6]} 19... Rcc8
{[%clk 0:02:44.5]} 20. b5 {[%clk 0:02:21]} 20... axb5 {[%clk 0:02:42.9]} 21.
cxb5 {[%clk 0:02:21.9]} 21... d5 {[%clk 0:02:31.2]} 22. Nc6 {[%clk 0:02:21.5]}
22... Re8 {[%clk 0:02:31.5]} 23. e4 {[%clk 0:02:17.9]} 23... dxe4 {[%clk
0:02:29.4]} 24. Nxe4 {[%clk 0:02:18]} 24... Nd5 {[%clk 0:02:30.1]} 25. Nc3
{[%clk 0:01:46.8]} 25... Ba3 {[%clk 0:02:21.2]} 26. Rc2 {[%clk 0:00:47.4]} 26...
Nb4 {[%clk 0:02:20.9]} 27. Nxb4 {[%clk 0:00:23.2]} 27... Bxb4 {[%clk 0:02:21.8]}
28. Ne4 {[%clk 0:00:24]} 28... Rxc2 {[%clk 0:02:12.2]} 29. Qxc2 {[%clk
0:00:24.9]} 29... Rc8 {[%clk 0:02:11.9]} 30. Qe2 {[%clk 0:00:25]} 30... e5
{[%clk 0:02:11.4]} 31. Nd6 {[%clk 0:00:22]} 31... Bxd6 {[%clk 0:02:10.6]} 32.
Rxd6 {[%clk 0:00:22.9]} 32... h6 {[%clk 0:02:10.8]} 33. Qe3 {[%clk 0:00:22.8]}
33... Rc5 {[%clk 0:02:08.6]} 34. a4 {[%clk 0:00:22.5]} 34... Qc7 {[%clk
0:02:07.3]} 35. Rd1 {[%clk 0:00:19.4]} 35... Kh7 {[%clk 0:02:05]} 36. h4 {[%clk
0:00:18.7]} 36... Rc3 {[%clk 0:02:04.9]} 37. Qe4 {[%clk 0:00:18.8]} 37... Rc4
{[%clk 0:02:05.1]} 38. Qf5 {[%clk 0:00:17.4]} 38... Kg8 {[%clk 0:01:49.6]} 39.
Rd7 {[%clk 0:00:16.3]} 39... Rc1+ {[%clk 0:01:49.9]} 40. Kh2 {[%clk 0:00:16.7]}
40... Qc4 {[%clk 0:01:50.8]} 41. Rd8+ {[%clk 0:00:14.5]} 41... Kh7 {[%clk
0:01:50.1]} 42. h5 {[%clk 0:00:14.6]} 42... Qf1 {[%clk 0:01:44.9]} 43. Bxe5
{[%clk 0:00:13.2]} 43... Qh1+ {[%clk 0:01:44.9]} 44. Kg3 {[%clk 0:00:13.7]}
44... Qh4+ {[%clk 0:01:45.3]} 45. Kf3 {[%clk 0:00:13.9]} 45... Qxd8 {[%clk
0:01:45.3]} 46. Qxf7 {[%clk 0:00:13.3]} 46... Nxe5+ {[%clk 0:01:45.6]} 0-1

[Event "*** Titled Tuesday Blitz"]
[Site "Chess.com"]
[Date "2021.03.16"]
[Round "3"]
[White "Triumphmate"]
[Black "chessmadara"]
[Result "1-0"]
[WhiteElo "2381"]
[BlackElo "2158"]
[TimeControl "180+1"]
[EndTime "10:27:00 PDT"]
[Termination "Triumphmate won by checkmate"]

1. e4 {[%clk 0:02:48.4]} 1... c5 {[%clk 0:02:59.7]} 2. Nf3 {[%clk 0:02:48.8]}
2... d6 {[%clk 0:02:57.3]} 3. d4 {[%clk 0:02:49]} 3... cxd4 {[%clk 0:02:58.2]}
4. Nxd4 {[%clk 0:02:49.9]} 4... Nf6 {[%clk 0:02:57.4]} 5. Nc3 {[%clk 0:02:50.3]}
5... g6 {[%clk 0:02:57.9]} 6. f4 {[%clk 0:02:50.2]} 6... Nc6 {[%clk 0:02:53.5]}
7. Nf3 {[%clk 0:02:50.2]} 7... Bg7 {[%clk 0:02:51.8]} 8. Bd3 {[%clk 0:02:50.1]}
8... O-O {[%clk 0:02:51.4]} 9. O-O {[%clk 0:02:50.3]} 9... e5 {[%clk 0:02:50.4]}
10. Kh1 {[%clk 0:02:50.5]} 10... exf4 {[%clk 0:02:36.3]} 11. Bxf4 {[%clk
0:02:51.4]} 11... d5 {[%clk 0:02:36.5]} 12. e5 {[%clk 0:02:22.1]} 12... Ng4
{[%clk 0:02:35.5]} 13. Qe1 {[%clk 0:02:19.6]} 13... Re8 {[%clk 0:02:25.1]} 14.
Qg3 {[%clk 0:02:18.3]} 14... Ngxe5 {[%clk 0:02:14.9]} 15. Nxe5 {[%clk
0:01:58.6]} 15... Nxe5 {[%clk 0:02:14.6]} 16. Rae1 {[%clk 0:01:55.9]} 16... Nxd3
{[%clk 0:02:11.1]} 17. Qxd3 {[%clk 0:01:56.8]} 17... Be6 {[%clk 0:02:08.8]} 18.
Be5 {[%clk 0:01:54]} 18... Qg5 {[%clk 0:01:43.2]} 19. Bxg7 {[%clk 0:01:52]}
19... Kxg7 {[%clk 0:01:42.9]} 20. Qd4+ {[%clk 0:01:52]} 20... Kg8 {[%clk
0:01:41.7]} 21. h4 {[%clk 0:01:52.2]} 21... Qh5 {[%clk 0:01:27.9]} 22. Re5
{[%clk 0:01:51.7]} 22... Qh6 {[%clk 0:00:45.4]} 23. Nxd5 {[%clk 0:01:50]} 23...
Bxd5 {[%clk 0:00:45.3]} 24. Rxd5 {[%clk 0:01:47.5]} 24... Rac8 {[%clk
0:00:40.8]} 25. c4 {[%clk 0:01:42.5]} 25... Qe3 {[%clk 0:00:23.5]} 26. Qxe3
{[%clk 0:01:37.7]} 26... Rxe3 {[%clk 0:00:24.4]} 27. Rd7 {[%clk 0:01:36.9]}
27... Rxc4 {[%clk 0:00:23.3]} 28. Rfxf7 {[%clk 0:01:36.2]} 28... Rxh4+ {[%clk
0:00:16.5]} 29. Kg1 {[%clk 0:01:36]} 29... Re2 {[%clk 0:00:10.8]} 30. Rg7+
{[%clk 0:01:31.1]} 30... Kf8 {[%clk 0:00:10.7]} 31. Rdf7+ {[%clk 0:01:30.9]}
31... Ke8 {[%clk 0:00:10.6]} 32. Rxb7 {[%clk 0:01:31.8]} 32... Kf8 {[%clk
0:00:09.3]} 33. Rbf7+ {[%clk 0:01:32.3]} 33... Ke8 {[%clk 0:00:09.3]} 34. Rxa7
{[%clk 0:01:33.2]} 34... Kf8 {[%clk 0:00:09.5]} 35. Rgf7+ {[%clk 0:01:33.8]}
35... Ke8 {[%clk 0:00:09.4]} 36. Rfb7 {[%clk 0:01:32.8]} 36... Rd4 {[%clk
0:00:05.8]} 37. Rxh7 {[%clk 0:01:30.8]} 37... Kd8 {[%clk 0:00:01.7]} 38. Ra8#
{[%clk 0:01:30.6]} 1-0

[Event "*** Titled Tuesday Blitz"]
[Site "Chess.com"]
[Date "2021.03.16"]
[Round "3"]
[White "tylityli"]
[Black "RobertoJBM"]
[Result "0-1"]
[WhiteElo "2290"]
[BlackElo "2761"]
[TimeControl "180+1"]
[EndTime "10:27:01 PDT"]
[Termination "RobertoJBM won by resignation"]

1. d4 {[%clk 0:02:57]} 1... d5 {[%clk 0:02:59.7]} 2. c4 {[%clk 0:02:55.7]} 2...
c6 {[%clk 0:02:59.7]} 3. cxd5 {[%clk 0:02:55.4]} 3... cxd5 {[%clk 0:02:59.4]} 4.
Bf4 {[%clk 0:02:56.3]} 4... Nc6 {[%clk 0:02:58.8]} 5. e3 {[%clk 0:02:56.1]} 5...
Qb6 {[%clk 0:02:56]} 6. Nc3 {[%clk 0:02:54.1]} 6... Qxb2 {[%clk 0:02:53.6]} 7.
Nxd5 {[%clk 0:02:52.3]} 7... e5 {[%clk 0:02:47.4]} 8. Bxe5 {[%clk 0:02:30]} 8...
Nxe5 {[%clk 0:02:26.3]} 9. Rb1 {[%clk 0:02:02.7]} 9... Qa3 {[%clk 0:01:51.2]}
10. dxe5 {[%clk 0:01:58.8]} 10... Qa5+ {[%clk 0:01:14.8]} 11. Qd2 {[%clk
0:01:50.9]} 11... Qxd2+ {[%clk 0:01:07.9]} 12. Kxd2 {[%clk 0:01:50.7]} 12... Bf5
{[%clk 0:01:08.1]} 13. Rb4 {[%clk 0:01:06.7]} 13... O-O-O {[%clk 0:01:02.2]} 14.
Rd4 {[%clk 0:01:06.4]} 14... Bc5 {[%clk 0:00:58.9]} 15. Bc4 {[%clk 0:00:43]}
15... Bxd4 {[%clk 0:00:54.3]} 16. exd4 {[%clk 0:00:41.2]} 16... Be6 {[%clk
0:00:53.8]} 17. Ne3 {[%clk 0:00:35.5]} 17... Bxc4 {[%clk 0:00:49.4]} 18. Kc3
{[%clk 0:00:36.4]} 18... Bxa2 {[%clk 0:00:43.5]} 19. Nf3 {[%clk 0:00:35.5]}
19... Ne7 {[%clk 0:00:41.6]} 20. Ra1 {[%clk 0:00:27.5]} 20... Nd5+ {[%clk
0:00:37.9]} 21. Nxd5 {[%clk 0:00:25.7]} 21... Bxd5 {[%clk 0:00:38.8]} 22. Rxa7
{[%clk 0:00:25.9]} 22... Kb8 {[%clk 0:00:38.5]} 23. Ra5 {[%clk 0:00:24.7]} 23...
Bxf3 {[%clk 0:00:34.2]} 24. gxf3 {[%clk 0:00:24.4]} 24... b6 {[%clk 0:00:34.3]}
0-1

[Event "*** Titled Tuesday Blitz"]
[Site "Chess.com"]
[Date "2021.03.16"]
[Round "3"]
[White "hypert"]
[Black "XDPS"]
[Result "0-1"]
[WhiteElo "2572"]
[BlackElo "2805"]
[TimeControl "180+1"]
[EndTime "10:27:03 PDT"]
[Termination "XDPS won by checkmate"]

1. e4 {[%clk 0:03:00.9]} 1... c5 {[%clk 0:02:59.6]} 2. Nc3 {[%clk 0:03:01.8]}
2... e6 {[%clk 0:02:59.1]} 3. Nf3 {[%clk 0:03:02.4]} 3... a6 {[%clk 0:02:58.4]}
4. d4 {[%clk 0:03:02.4]} 4... cxd4 {[%clk 0:02:59.3]} 5. Nxd4 {[%clk 0:03:02.8]}
5... Qc7 {[%clk 0:02:59.9]} 6. Bd3 {[%clk 0:03:02.9]} 6... b5 {[%clk 0:03:00.1]}
7. Qe2 {[%clk 0:03:02.6]} 7... Bb7 {[%clk 0:03:00.3]} 8. a3 {[%clk 0:03:02.2]}
8... Nc6 {[%clk 0:03:00.7]} 9. Nxc6 {[%clk 0:03:00.2]} 9... Bxc6 {[%clk
0:03:00.7]} 10. Bd2 {[%clk 0:03:00.4]} 10... Nf6 {[%clk 0:03:00.6]} 11. a4
{[%clk 0:02:56.6]} 11... b4 {[%clk 0:02:58.8]} 12. Na2 {[%clk 0:02:56.6]} 12...
a5 {[%clk 0:02:58.9]} 13. Nc1 {[%clk 0:02:55.3]} 13... Bd6 {[%clk 0:02:52]} 14.
Nb3 {[%clk 0:02:53.8]} 14... O-O {[%clk 0:02:50.5]} 15. Nd4 {[%clk 0:02:52.6]}
15... Be5 {[%clk 0:02:47]} 16. Nxc6 {[%clk 0:02:47.9]} 16... dxc6 {[%clk
0:02:44.9]} 17. Rb1 {[%clk 0:02:29.3]} 17... Rad8 {[%clk 0:02:41.5]} 18. g3
{[%clk 0:02:18.2]} 18... c5 {[%clk 0:02:37.4]} 19. O-O {[%clk 0:02:12.9]} 19...
c4 {[%clk 0:02:34.8]} 20. Bxc4 {[%clk 0:02:09.7]} 20... Rxd2 {[%clk 0:02:35.2]}
21. Qxd2 {[%clk 0:02:09.1]} 21... Qxc4 {[%clk 0:02:35.3]} 22. Qd3 {[%clk
0:01:53.5]} 22... Rc8 {[%clk 0:02:25.1]} 23. Rfd1 {[%clk 0:01:48.6]} 23... h5
{[%clk 0:02:09.5]} 24. f4 {[%clk 0:01:46.6]} 24... Qc5+ {[%clk 0:02:03.7]} 25.
Kf1 {[%clk 0:01:27.3]} 25... Ng4 {[%clk 0:01:07.5]} 26. Rd2 {[%clk 0:01:27.2]}
26... Bb8 {[%clk 0:00:52.7]} 27. Rc1 {[%clk 0:01:26.8]} 27... Ba7 {[%clk
0:00:52.3]} 28. Kg2 {[%clk 0:01:21.1]} 28... h4 {[%clk 0:00:38.6]} 29. gxh4
{[%clk 0:01:06.1]} 29... Ne3+ {[%clk 0:00:36.7]} 30. Kg3 {[%clk 0:01:00.8]}
30... Qh5 {[%clk 0:00:36.8]} 31. Qe2 {[%clk 0:00:47.2]} 31... Qg6+ {[%clk
0:00:36.8]} 32. Kf3 {[%clk 0:00:45.5]} 32... Qg4+ {[%clk 0:00:34.7]} 33. Kf2
{[%clk 0:00:44.1]} 33... Qg2+ {[%clk 0:00:34.3]} 34. Ke1 {[%clk 0:00:43.5]}
34... Qg1+ {[%clk 0:00:34.4]} 35. Qf1 {[%clk 0:00:44]} 35... Qxf1# {[%clk
0:00:34.7]} 0-1